bitfinex/quotes_SOLUSD_20250318
["timestamp","ask_amount","ask_price","bid_price","bid_amount"]
[1742340093684,41.46039244,125.59,125.58,0.03]
[1742340095000,49.42279244,125.59,125.58,0.03]
[1742340095891,131.02279244,125.59,125.58,0.03]
[1742340096098,121.56716735,125.59,125.58,0.03]
[1742340098204,129.52956735,125.59,125.58,0.03]
[1742340098898,47.92956735,125.59,125.58,0.03]
[1742340099091,70.45644415,125.59,125.58,0.03]
[1742340100413,49.4232488,125.59,125.58,0.03]
[1742340100703,41.4608488,125.59,125.58,0.03]
[1742340103008,123.0608488,125.59,125.58,0.03]
[1742340103184,114.00621775,125.59,125.58,0.03]
[1742340103385,115.49965963,125.59,125.58,0.03]
[1742340106427,123.46205963,125.59,125.58,0.03]
[1742340106720,121.96861775,125.59,125.58,0.03]
[1742340106897,114.00621775,125.59,125.58,0.03]
[1742340107098,115.49973452,125.59,125.58,0.03]
[1742340108324,123.46213452,125.59,125.58,0.03]
[1742340108617,175.85760075,125.59,125.58,0.03]
[1742340109016,94.25760075,125.59,125.58,0.03]
[1742340109219,95.75124391,125.59,125.58,0.03]
[1742340109801,41.86226091,125.59,125.58,0.03]
[1742340111196,95.75124391,125.59,125.58,0.03]
[1742340112129,41.86226091,125.59,125.58,0.03]
[1742340113602,95.75124391,125.59,125.58,0.03]
[1742340114725,41.86226091,125.59,125.58,0.03]
[1742340116742,95.75124391,125.59,125.58,0.03]
[1742340118723,95.75124391,125.59,125.53,7.9962]
[1742340118927,13.47224575,125.54,125.53,0.03]
[1742340119441,20.47224575,125.55,125.53,0.03]
[1742340121643,7.0,125.55,125.53,0.03]
[1742340121851,7.0,125.55,125.53,7.9962]
[1742340122857,20.47224575,125.55,125.53,7.9962]
[1742340125766,7.0,125.55,125.53,7.9962]
[1742340126752,20.47224575,125.55,125.53,7.9962]
[1742340127128,7.0,125.55,125.53,7.9962]
[1742340128257,20.47224575,125.55,125.53,7.9962]
[1742340130961,7.0,125.55,125.53,7.9962]
[1742340131269,20.47224575,125.55,125.53,7.9962]
[1742340132264,20.47224575,125.55,125.54,0.14216157]
[1742340132265,7.0,125.55,125.54,0.14216157]
[1742340132468,95.07224575,125.57,125.55,1.6345]
[1742340132469,81.6,125.57,125.55,1.6345]
[1742340132769,13.47224575,125.59,125.55,1.6345]
[1742340132969,7.0,125.59,125.55,15.10674575]
[1742340133262,13.47224575,125.6,125.56,0.14216157]
[1742340133966,13.47224575,125.6,125.56,13.61440732]
[1742340134166,13.47224575,125.6,125.57,7.9636]
[1742340134563,13.47224575,125.59,125.57,7.9636]
[1742340135360,13.47224575,125.59,125.56,0.14216157]
[1742340135867,13.47224575,125.58,125.56,0.14216157]
[1742340137044,13.47224575,125.57,125.55,1.6345]
[1742340137652,16.45505882,125.6,125.55,1.77666157]
[1742340137653,13.47224575,125.56,125.55,1.77666157]
[1742340137843,13.47224575,125.56,125.53,0.17216157]
[1742340138047,13.47224575,125.55,125.53,0.17216157]
[1742340139675,13.47224575,125.54,125.53,0.03]
[1742340143771,22.93166232,125.54,125.53,0.03]
[1742340148891,14.96616232,125.54,125.53,0.03]
[1742340155598,1.49391657,125.54,125.53,0.03]
[1742340155892,14.96616232,125.54,125.53,0.03]
[1742340156995,13.47224575,125.54,125.53,0.03]
[1742340157196,14.96619336,125.54,125.53,0.03]
[1742340160173,21.92619336,125.54,125.53,0.03]
[1742340162578,40.86016536,125.54,125.53,0.03]
[1742340163790,48.82566536,125.54,125.51,0.03]
[1742340163975,32.40621775,125.52,125.51,0.03]
[1742340164175,33.90057357,125.52,125.51,0.03]
[1742340165804,41.86737357,125.52,125.51,0.03]
[1742340166773,33.90057357,125.52,125.51,0.03]
[1742340166978,41.86737357,125.52,125.51,0.03]
[1742340170518,95.75635657,125.52,125.51,0.03]
[1742340172313,18.933972,125.51,125.46,9.4879]
[1742340172518,13.47224575,125.47,125.46,1.5175]
[1742340173216,13.47224575,125.47,125.46,9.4881]
[1742340174317,13.47224575,125.48,125.46,9.4881]
[1742340175318,13.47224575,125.47,125.46,9.4881]
[1742340176616,13.47224575,125.47,125.45,0.03]
[1742340177103,18.933972,125.49,125.45,0.03]
[1742340177303,13.47224575,125.48,125.45,0.03]
[1742340177602,13.47224575,125.47,125.45,0.03]
[1742340178038,13.47224575,125.48,125.45,0.03]
[1742340179722,13.47224575,125.47,125.45,0.03]
[1742340181419,20.42858653,125.49,125.45,0.03]
[1742340181420,13.47224575,125.46,125.45,0.03]
[1742340181797,20.41224575,125.46,125.45,0.03]
[1742340182820,6.94,125.46,125.45,0.03]
[1742340188624,13.47224575,125.49,125.45,0.03]
[1742340188831,81.6,125.5,125.45,13.50224575]
[1742340188832,6.92,125.48,125.45,13.50224575]
[1742340189122,81.6,125.5,125.48,1.658]
[1742340189304,6.92,125.51,125.48,1.658]
[1742340189706,20.45524575,125.52,125.48,1.658]
[1742340190329,20.45524575,125.52,125.49,7.9687]
[1742340190929,13.47224575,125.51,125.49,7.9687]
[1742340191428,0.063,125.52,125.5,0.14216157]
[1742340192304,0.063,125.52,125.51,8.10956157]
[1742340197708,13.47224575,125.56,125.52,0.28432314]
[1742340198115,13.47224575,125.55,125.52,0.28432314]
[1742340199235,13.47224575,125.54,125.53,8.10836157]
[1742340199531,13.47224575,125.54,125.53,7.9662]
[1742340201534,13.47224575,125.54,125.52,7.9668]
[1742340201741,13.47224575,125.54,125.52,8.10896157]
[1742340202039,13.47224575,125.53,125.52,8.10896157]
[1742340203242,13.47224575,125.53,125.51,0.14216157]
[1742340203420,13.47224575,125.52,125.5,7.9681]
[1742340207853,13.47224575,125.53,125.5,7.9681]
[1742340208829,95.13524575,125.55,125.51,0.14216157]
[1742340209434,13.53524575,125.55,125.51,0.14216157]
[1742340210347,13.53524575,125.55,125.53,0.14216157]
[1742340210348,0.063,125.55,125.53,0.14216157]
[1742340210651,0.063,125.55,125.53,1.77116157]
[1742340211646,0.063,125.55,125.54,0.28432314]
[1742340211829,0.063,125.55,125.54,33.75656889]
[1742340212029,0.063,125.55,125.54,20.28432314]
[1742340212551,0.063,125.55,125.54,28.24982314]
[1742340213744,0.063,125.58,125.55,0.14216157]
[1742340214756,0.063,125.58,125.57,0.14216157]
[1742340215259,0.063,125.58,125.56,7.9643]
[1742340215639,0.063,125.58,125.57,0.14216157]
[1742340215957,0.063,125.58,125.57,1.88802314]
[1742340217658,0.063,125.58,125.57,9.85162314]
[1742340220460,0.063,125.58,125.57,23.32386889]
[1742340220633,0.063,125.58,125.57,24.51800235]
[1742340220834,13.47224575,125.63,125.61,0.14216157]
[1742340222050,13.47224575,125.63,125.62,8.10266157]
[1742340223554,0.063,125.64,125.62,1.74586157]
[1742340223730,13.53524575,125.64,125.62,1.74586157]
[1742340223933,13.47224575,125.63,125.62,8.10246157]
[1742340225243,13.53524575,125.64,125.62,8.10246157]
[1742340225559,0.063,125.64,125.63,0.14216157]
[1742340225945,13.53524575,125.64,125.63,0.14216157]
[1742340227359,13.53524575,125.64,125.59,1.6037]
[1742340227659,0.063,125.64,125.61,20.0]
[1742340227842,7.9598,125.63,125.59,7.9623]
[1742340228034,14.9224,125.64,125.57,8.24792314]
[1742340228228,14.9224,125.64,125.6,20.0]
[1742340229656,16.41523332,125.64,125.6,20.0]
[1742340230157,16.41523332,125.64,125.59,27.9623]
[1742340230358,13.47224575,125.6,125.59,28.10446157]
[1742340231654,13.47224575,125.61,125.59,28.10446157]
[1742340233364,13.47224575,125.61,125.6,28.10386157]
[1742340233663,13.47224575,125.62,125.6,28.10386157]
[1742340234845,0.063,125.64,125.62,0.14216157]
[1742340235046,13.53524575,125.64,125.62,0.14216157]
[1742340235567,13.47224575,125.63,125.62,0.14216157]
[1742340235746,13.47224575,125.63,125.61,7.9611]
[1742340235946,13.47224575,125.62,125.61,8.10326157]
[1742340237263,13.47224575,125.62,125.61,7.9611]
[1742340237869,13.47224575,125.62,125.61,8.10326157]
[1742340238371,13.47224575,125.62,125.6,27.9616]
[1742340238568,13.47224575,125.61,125.6,28.10376157]
[1742340239267,13.47224575,125.62,125.6,28.10376157]
[1742340239656,13.47224575,125.61,125.6,28.10376157]
[1742340240053,13.47224575,125.61,125.6,27.9616]
[1742340241864,13.47224575,125.61,125.6,28.10376157]
[1742340242052,0.063,125.64,125.61,0.14216157]
[1742340242246,13.47224575,125.63,125.61,0.14216157]
[1742340242446,13.53524575,125.64,125.61,0.14216157]
[1742340242871,13.47224575,125.63,125.61,0.14216157]
[1742340244253,13.47224575,125.63,125.62,8.10266157]
[1742340248776,13.47224575,125.63,125.61,7.9609]
[1742340248973,13.47224575,125.62,125.61,7.9609]
[1742340249274,13.47224575,125.62,125.6,20.0]
[1742340249275,13.47224575,125.62,125.6,27.9616]
[1742340249573,13.47224575,125.61,125.6,28.10376157]
[1742340253085,26.67194886,125.64,125.6,20.0]
[1742340253284,13.47224575,125.61,125.6,20.0]
[1742340253886,13.47224575,125.61,125.59,7.9622]
[1742340254068,13.47224575,125.6,125.58,7.9928]
[1742340254266,13.47224575,125.59,125.58,8.13496157]
[1742340254787,9.51580134,125.63,125.58,8.13496157]
[1742340255081,13.47224575,125.59,125.58,8.13496157]
[1742340259987,13.47224575,125.59,125.58,0.03]
[1742340266076,32.40621775,125.59,125.58,0.03]
[1742340267983,32.46921775,125.59,125.58,0.03]
[1742340269514,13.53524575,125.59,125.58,0.03]
[1742340271393,0.063,125.59,125.58,0.03]
[1742340271976,0.063,125.59,125.58,20.17216157]
[1742340272302,0.063,125.59,125.58,28.13516157]
[1742340278686,13.53524575,125.59,125.58,28.13516157]
[1742340280102,0.063,125.59,125.58,28.27732314]
[1742340282195,13.47224575,125.62,125.59,0.28432314]
[1742340282694,0.063,125.63,125.59,0.28432314]
[1742340282895,0.063,125.63,125.59,13.75656889]
[1742340283087,13.53524575,125.63,125.6,27.8661]
[1742340284895,13.53524575,125.63,125.62,20.14216157]
[1742340285216,13.53524575,125.63,125.62,27.9605]
[1742340285516,13.53524575,125.63,125.61,7.9609]
[1742340285690,13.47224575,125.62,125.61,7.9609]
[1742340288613,13.47224575,125.62,125.58,7.993]
[1742340288820,13.47224575,125.59,125.58,8.13516157]
[1742340291112,13.47224575,125.6,125.58,8.13516157]
[1742340291288,13.47224575,125.61,125.58,8.13516157]
[1742340291615,13.47224575,125.61,125.59,0.14216157]
[1742340293612,13.47224575,125.61,125.6,7.9617]
[1742340294618,6.923,125.63,125.6,7.9617]
[1742340294825,13.47224575,125.61,125.6,7.9617]
[1742340297121,13.47224575,125.61,125.59,8.10456157]
[1742340297322,13.47224575,125.6,125.59,8.10456157]
[1742340299223,6.923,125.63,125.59,8.10456157]
[1742340299224,13.47224575,125.61,125.59,8.10456157]
[1742340300807,13.47224575,125.6,125.58,7.9927]
[1742340301125,13.47224575,125.59,125.58,7.9927]
[1742340302008,13.47224575,125.59,125.58,0.03]
[1742340306427,39.26621775,125.59,125.58,0.03]
[1742340306634,102.61087123,125.59,125.58,0.03]
[1742340308008,18.933972,125.58,125.53,9.71886157]
[1742340308211,13.47224575,125.54,125.52,7.9668]
[1742340308410,13.47224575,125.54,125.52,8.10896157]
[1742340309242,13.47224575,125.55,125.53,0.14216157]
[1742340310243,13.47224575,125.55,125.54,7.9655]
[1742340310948,81.6,125.61,125.55,0.14216157]
[1742340311117,13.47224575,125.58,125.55,0.14216157]
[1742340311316,13.47224575,125.58,125.55,0.28432314]
[1742340312240,13.47224575,125.58,125.57,0.14216157]
[1742340312946,13.47224575,125.58,125.56,7.9643]
[1742340313146,13.47224575,125.57,125.56,7.9643]
[1742340313510,13.47224575,125.57,125.55,7.9649]
[1742340313746,13.47224575,125.56,125.55,7.9649]
[1742340315042,13.47224575,125.56,125.54,7.9653]
[1742340315215,13.47224575,125.55,125.54,7.9653]
[1742340316829,13.47224575,125.55,125.53,8.10816157]
[1742340317125,13.47224575,125.54,125.53,8.10816157]
[1742340319924,13.47224575,125.54,125.53,7.966]
[1742340322150,13.47224575,125.54,125.52,8.10896157]
[1742340324038,8.37369564,125.57,125.52,8.10896157]
[1742340324243,13.47224575,125.54,125.52,8.10896157]
[1742340324749,13.47224575,125.53,125.51,7.9672]
[1742340324951,13.47224575,125.52,125.5,9.5906]
[1742340325150,116.87166764,125.57,125.49,7.9685]
[1742340325151,13.47224575,125.51,125.49,7.9685]
[1742340325447,13.47224575,125.5,125.48,0.03]
[1742340325645,13.47224575,125.49,125.48,0.03]
[1742340326243,13.47224575,125.49,125.48,8.14136157]
[1742340328029,13.47224575,125.49,125.48,0.03]
[1742340329731,13.47224575,125.49,125.48,0.17216157]
[1742340329938,13.47224575,125.5,125.48,0.17216157]
[1742340330534,13.47224575,125.5,125.49,7.9687]
[1742340333556,100.533972,125.54,125.49,8.11086157]
[1742340333739,13.47224575,125.51,125.49,27.8906]
[1742340335240,13.47224575,125.51,125.5,0.14216157]
[1742340335556,13.47224575,125.51,125.5,8.11026157]
[1742340341461,13.47224575,125.51,125.5,7.9681]
[1742340341672,13.47224575,125.51,125.5,8.11026157]
[1742340342460,13.47224575,125.51,125.49,19.9519]
[1742340342673,6.88,125.54,125.49,19.9519]
[1742340342674,13.47224575,125.5,125.49,7.9987]
[1742340343662,13.47224575,125.5,125.49,0.03]
[1742340346969,47.25431775,125.5,125.49,0.03]
[1742340347269,39.28621775,125.5,125.49,0.03]
[1742340347976,47.25431775,125.5,125.49,0.03]
[1742340348952,39.28621775,125.5,125.49,0.03]
[1742340351875,39.28621775,125.5,125.48,0.03]
[1742340352066,33.90082387,125.49,125.48,0.03]
[1742340353879,33.90082387,125.49,125.45,0.03]
[1742340354080,13.47224575,125.46,125.45,0.03]
[1742340361370,100.533972,125.49,125.45,0.03]
[1742340361572,13.47224575,125.46,125.45,0.03]
[1742340362966,13.47224575,125.46,125.45,8.0013]
[1742340366076,13.47224575,125.46,125.45,0.03]
[1742340391493,13.47224575,125.47,125.45,0.03]
[1742340391697,81.663,125.48,125.45,0.03]
[1742340391899,13.47224575,125.47,125.45,0.03]
[1742340393506,81.663,125.48,125.45,8.0013]
[1742340393507,13.47224575,125.46,125.45,8.0013]
[1742340395012,13.47224575,125.47,125.45,8.0013]
[1742340395607,81.663,125.48,125.45,8.0013]
[1742340395805,13.47224575,125.47,125.45,27.9295]
[1742340399288,0.063,125.48,125.47,20.14216157]
[1742340400596,13.47224575,125.52,125.48,20.28432314]
[1742340400794,13.47224575,125.53,125.48,33.75656889]
[1742340401005,13.47224575,125.52,125.48,33.75656889]
[1742340401400,13.47224575,125.52,125.5,0.14216157]
[1742340403311,13.47224575,125.51,125.49,27.8906]
[1742340403891,13.47224575,125.5,125.49,28.03276157]
[1742340404812,13.47224575,125.5,125.49,28.11086157]
[1742340405192,13.47224575,125.51,125.49,28.11086157]
[1742340409519,13.47224575,125.52,125.49,48.03276157]
[1742340411095,13.47224575,125.51,125.49,48.03276157]
[1742340412713,13.53524575,125.51,125.49,48.03276157]
[1742340415918,0.063,125.51,125.49,48.03276157]
[1742340417221,13.53524575,125.51,125.49,48.03276157]
[1742340418222,0.063,125.51,125.49,48.03276157]
[1742340422329,95.07224575,125.55,125.5,43.01210732]
[1742340422528,13.47224575,125.56,125.51,13.61440732]
[1742340424120,13.47224575,125.56,125.53,0.14216157]
[1742340424906,13.53524575,125.56,125.53,0.14216157]
[1742340426228,13.53524575,125.56,125.54,7.9655]
[1742340428113,0.063,125.56,125.54,7.9655]
[1742340428307,0.063,125.56,125.55,0.14216157]
[1742340430332,0.063,125.56,125.55,8.10706157]
[1742340432446,13.53524575,125.56,125.55,8.10706157]
[1742340432843,13.53524575,125.56,125.54,9.582]
[1742340433049,13.47224575,125.55,125.54,8.10736157]
[1742340433336,13.47224575,125.55,125.53,7.9659]
[1742340433636,13.47224575,125.54,125.53,8.10806157]
[1742340435136,13.47224575,125.54,125.52,7.9668]
[1742340435334,13.47224575,125.53,125.52,8.10896157]
[1742340439220,13.53524575,125.54,125.52,8.10896157]
[1742340442020,13.47224575,125.53,125.52,8.10896157]
[1742340442727,13.47224575,125.53,125.51,7.967]
[1742340442934,13.47224575,125.52,125.49,0.03]
[1742340443129,13.47224575,125.5,125.49,0.03]
[1742340443646,13.47224575,125.5,125.49,8.14066157]
[1742340444234,13.47224575,125.51,125.49,8.14066157]
[1742340445843,25.856972,125.54,125.49,28.06256157]
[1742340446144,13.47224575,125.52,125.5,0.14216157]
[1742340446751,13.47224575,125.52,125.51,7.9674]
[1742340447131,13.47224575,125.53,125.51,7.9674]
[1742340447344,13.53524575,125.54,125.51,27.8861]
[1742340447545,13.47224575,125.53,125.51,27.8861]
[1742340450749,13.47224575,125.53,125.51,27.9161]
[1742340452551,0.063,125.54,125.51,27.9161]
[1742340452732,13.53524575,125.54,125.52,0.14216157]
[1742340452931,0.063,125.54,125.52,0.14216157]
[1742340453426,13.53524575,125.54,125.53,7.9662]
[1742340455553,0.063,125.54,125.53,8.10836157]
[1742340456256,13.53524575,125.54,125.53,8.10836157]
[1742340456556,13.53524575,125.54,125.53,7.9662]
[1742340457557,13.53524575,125.54,125.51,7.9974]
[1742340457757,13.47224575,125.52,125.51,7.9974]
[1742340458843,0.063,125.54,125.51,27.9161]
[1742340459068,0.063,125.54,125.52,0.14216157]
[1742340459228,13.53524575,125.54,125.52,0.14216157]
[1742340459634,13.53524575,125.54,125.53,7.9662]
[1742340460334,13.53524575,125.54,125.53,8.10836157]
[1742340460736,0.063,125.54,125.53,8.10836157]
[1742340461035,13.53524575,125.54,125.53,8.10836157]
[1742340462537,0.063,125.54,125.53,8.10836157]
[1742340464455,13.53524575,125.54,125.53,8.10836157]
[1742340465962,13.53524575,125.54,125.52,7.9668]
[1742340466147,13.47224575,125.53,125.52,8.10896157]
[1742340468863,13.53524575,125.54,125.52,8.10896157]
[1742340471347,13.47224575,125.53,125.52,8.10896157]
[1742340474265,13.53524575,125.53,125.52,8.10896157]
[1742340474471,0.063,125.53,125.52,8.10896157]
[1742340482583,0.063,125.54,125.52,8.25112314]
[1742340486859,0.0001,125.54,125.53,14.95124228]
[1742340487091,0.0001,125.56,125.55,20.0]
[1742340487376,0.063,125.61,125.56,0.28432314]
[1742340487670,0.063,125.61,125.6,0.28432314]
[1742340487873,0.063,125.62,125.6,33.75656889]
[1742340488067,0.063,125.62,125.6,20.28432314]
[1742340488266,0.063,125.63,125.62,0.28432314]
[1742340488852,13.53524575,125.63,125.62,0.14216157]
[1742340489168,13.53524575,125.63,125.61,20.0]
[1742340489376,13.47224575,125.62,125.61,28.10326157]
[1742340489676,13.47224575,125.62,125.61,20.14216157]
[1742340490263,13.47224575,125.62,125.59,0.7]
[1742340490456,0.063,125.63,125.6,20.0]
[1742340490769,13.47224575,125.61,125.59,0.14216157]
[1742340490975,0.063,125.63,125.6,20.0]
[1742340491155,0.063,125.63,125.6,21.57610732]
[1742340491359,0.063,125.63,125.62,20.0]
[1742340491777,0.063,125.63,125.62,20.14216157]
[1742340491956,0.063,125.63,125.62,33.75656889]
[1742340492378,0.063,125.63,125.62,20.14216157]
[1742340492573,13.53524575,125.63,125.62,20.14216157]
[1742340492984,0.063,125.63,125.62,20.14216157]
[1742340493189,0.063,125.63,125.62,28.10266157]
[1742340494000,0.063,125.63,125.62,20.14216157]
[1742340494296,13.53524575,125.63,125.62,20.14216157]
[1742340494598,13.53524575,125.63,125.62,0.14216157]
[1742340495094,0.063,125.63,125.62,8.10266157]
[1742340495589,13.53524575,125.63,125.62,8.10266157]
[1742340496478,0.063,125.63,125.62,8.10266157]
[1742340497885,13.53524575,125.63,125.62,8.10266157]
[1742340499180,13.53524575,125.63,125.61,0.14216157]
[1742340499494,13.47224575,125.62,125.6,7.9617]
[1742340499879,13.47224575,125.61,125.6,8.10386157]
[1742340500986,13.47224575,125.61,125.58,7.963]
[1742340501190,13.47224575,125.59,125.58,8.10516157]
[1742340503191,0.063,125.63,125.59,0.14216157]
[1742340503394,13.47224575,125.6,125.59,0.14216157]
[1742340504999,13.47224575,125.6,125.59,8.10456157]
[1742340505217,13.47224575,125.62,125.59,8.10456157]
[1742340505500,13.47224575,125.62,125.59,28.01056157]
[1742340505799,13.53524575,125.63,125.59,28.01056157]
[1742340506411,13.47224575,125.62,125.59,28.01056157]
[1742340508202,13.47224575,125.61,125.59,28.01056157]
[1742340510401,13.47224575,125.61,125.59,28.07356157]
[1742340511207,0.063,125.63,125.59,28.07356157]
[1742340511406,13.47224575,125.62,125.61,20.0]
[1742340512105,13.47224575,125.62,125.61,20.14216157]
[1742340512610,0.063,125.63,125.62,0.14216157]
[1742340512803,13.53524575,125.63,125.62,0.14216157]
[1742340513412,0.063,125.63,125.62,0.14216157]
[1742340513789,13.53524575,125.63,125.62,0.14216157]
[1742340515125,13.53524575,125.63,125.62,8.10266157]
[1742340516217,0.063,125.63,125.62,8.10266157]
[1742340517104,13.53524575,125.63,125.62,8.10266157]
[1742340517322,0.063,125.63,125.62,8.10266157]
[1742340517820,13.53524575,125.63,125.62,7.9605]
[1742340518029,13.53524575,125.63,125.62,8.10266157]
[1742340522729,13.53524575,125.63,125.62,8.16566157]
[1742340522906,13.53524575,125.63,125.62,8.0235]
[1742340523108,13.53524575,125.63,125.62,0.063]
[1742340527931,13.53524575,125.63,125.62,8.0235]
[1742340528134,0.063,125.63,125.62,8.16566157]
[1742340529838,13.53524575,125.63,125.62,8.16566157]
[1742340531530,0.063,125.63,125.62,8.16566157]
[1742340533321,13.53524575,125.63,125.62,8.16566157]
[1742340537260,13.53524575,125.63,125.62,8.0235]
[1742340537636,13.53524575,125.63,125.62,0.063]
[1742340540135,0.063,125.63,125.62,0.063]
[1742340540340,13.53524575,125.63,125.62,0.063]
[1742340541930,13.53524575,125.63,125.62,8.16566157]
[1742340542339,0.063,125.63,125.62,8.16566157]
[1742340543245,13.53524575,125.63,125.62,8.16566157]
[1742340543654,0.063,125.63,125.62,8.16566157]
[1742340543858,13.53524575,125.63,125.62,8.16566157]
[1742340544959,0.063,125.63,125.62,8.16566157]
[1742340545454,0.0001,125.63,125.62,8.30782314]
[1742340549239,0.063,125.66,125.63,15.34576889]
[1742340549562,0.063,125.67,125.66,20.28432314]
[1742340551259,13.53524575,125.67,125.66,20.14216157]
[1742340551467,13.53524575,125.67,125.66,28.10006157]
[1742340553059,0.063,125.67,125.66,28.10006157]
[1742340553458,0.063,125.67,125.66,28.24222314]
[1742340556568,0.0001,125.67,125.66,44.42246787]
[1742340557064,0.0001,125.67,125.66,43.22916889]
[1742340557272,0.0001,125.67,125.66,29.75692314]
[1742340560862,13.47234575,125.67,125.66,28.10006157]
[1742340561071,13.47234575,125.67,125.65,0.14216157]
[1742340561270,13.47224575,125.66,125.65,0.14216157]
[1742340562373,13.47224575,125.66,125.65,8.10076157]
[1742340569379,13.47224575,125.66,125.65,8.16376157]
[1742340569680,13.47234575,125.67,125.66,0.14216157]
[1742340570379,0.0001,125.67,125.66,0.28432314]
[1742340570976,0.0001,125.67,125.66,28.24222314]
[1742340573860,13.47234575,125.67,125.66,28.24222314]
[1742340574881,13.47234575,125.67,125.66,8.10006157]
[1742340575585,13.47234575,125.67,125.65,8.0213]
[1742340575883,13.47224575,125.66,125.65,8.16346157]
[1742340581172,0.0001,125.67,125.66,0.14216157]
[1742340583391,13.47234575,125.67,125.66,8.10006157]
[1742340583574,0.0001,125.67,125.66,8.10006157]
[1742340584094,13.47234575,125.67,125.66,8.10006157]
[1742340586298,0.0001,125.67,125.66,8.10006157]
[1742340586779,13.47234575,125.67,125.66,8.10006157]
[1742340588098,0.0001,125.67,125.66,8.10006157]
[1742340588297,0.0001,125.67,125.66,8.24222314]
[1742340592099,0.0001,125.67,125.66,8.30522314]
[1742340603290,0.0001,125.67,125.66,28.43263331]
[1742340603608,0.0001,125.67,125.66,8.30522314]
[1742340604683,12.53534575,125.69,125.68,20.0]
[1742340605303,12.53534575,125.69,125.68,26.9567]
[1742340605507,13.47224575,125.7,125.69,0.14216157]
[1742340607607,13.47224575,125.7,125.69,28.09816157]
[1742340608092,13.47224575,125.7,125.69,8.09816157]
[1742340608294,13.47224575,125.7,125.67,7.9573]
[1742340608604,13.47224575,125.68,125.67,8.09946157]
[1742340609505,13.47224575,125.69,125.68,8.09886157]
[1742340609810,13.47224575,125.7,125.68,8.09886157]
[1742340610616,13.47224575,125.7,125.68,27.99056157]
[1742340611015,0.063,125.71,125.68,27.99056157]
[1742340611209,13.47224575,125.7,125.68,27.99056157]
[1742340611514,13.47224575,125.69,125.68,27.99056157]
[1742340612094,13.47224575,125.69,125.68,8.09886157]
[1742340614713,13.47224575,125.69,125.67,7.9571]
[1742340615018,13.47224575,125.68,125.67,8.09926157]
[1742340616518,13.47224575,125.68,125.66,8.0206]
[1742340616715,13.47224575,125.67,125.66,8.16276157]
[1742340617712,13.47224575,125.67,125.66,0.063]
[1742340618213,13.47224575,125.67,125.65,0.063]
[1742340618214,67.36122875,125.67,125.65,0.063]
[1742340618413,13.47224575,125.66,125.65,0.063]
[1742340630622,0.03,125.68,125.65,0.063]
[1742340630935,13.47224575,125.67,125.65,0.063]
[1742340631136,0.03,125.68,125.65,0.063]
[1742340631333,13.50224575,125.68,125.65,0.063]
[1742340632337,13.50224575,125.68,125.66,0.14216157]
[1742340632506,0.03,125.68,125.66,0.14216157]
[1742340632935,13.50224575,125.68,125.66,0.14216157]
[1742340633730,0.03,125.68,125.67,20.28432314]
[1742340634331,13.50224575,125.68,125.67,28.09946157]
[1742340636438,13.50224575,125.68,125.67,8.09946157]
[1742340637434,11.00224575,125.68,125.67,8.09946157]
[1742340637748,0.063,125.71,125.67,8.09946157]
[1742340637927,13.47224575,125.68,125.67,8.09946157]
[1742340638131,13.50224575,125.68,125.67,8.09946157]
[1742340638838,13.50224575,125.68,125.66,8.0209]
[1742340639041,13.47224575,125.67,125.66,8.0209]
[1742340639419,13.47224575,125.67,125.66,0.063]
[1742340642233,13.47224575,125.67,125.65,0.063]
[1742340642545,13.47224575,125.66,125.65,0.063]
[1742340644930,0.03,125.68,125.66,0.14216157]
[1742340645243,13.50224575,125.68,125.66,0.14216157]
[1742340645662,5.54224575,125.68,125.66,0.14216157]
[1742340646027,13.47224575,125.67,125.66,0.14216157]
[1742340646243,13.47224575,125.67,125.65,0.063]
[1742340646430,13.47224575,125.66,125.65,20.063]
[1742340647140,13.47224575,125.66,125.65,28.0216]
[1742340647345,7.383,125.71,125.66,0.14216157]
[1742340647541,13.47224575,125.67,125.66,0.14216157]
[1742340647862,13.47224575,125.67,125.65,8.0216]
[1742340648229,13.47224575,125.66,125.65,8.16376157]
[1742340648756,13.47224575,125.66,125.65,0.063]
[1742340649131,67.36122875,125.66,125.65,0.063]
[1742340649531,13.47224575,125.66,125.65,0.063]